fUSD/lending_fUSD_20250716
["ID","MTS","AMOUNT","RATE_DAILY","PERIOD"]
[372484886,1752660658703,-15672.67,0.00021917,2]
[372484887,1752660658714,-1163.12,0.00021917,2]
[372484888,1752660658729,-460.0,0.00021917,2]
[372484890,1752660658739,-460.0,0.00021917,2]
[372484892,1752660658748,-167.69222795,0.00021917,2]
[372484894,1752660658758,-1878.59,0.00021917,2]
[372484896,1752660658768,-460.0,0.00021917,2]
[372484898,1752660658777,-1734.53,0.00021917,2]
[372484900,1752660658787,-460.0,0.00021917,2]
[372484902,1752660658797,-8285.06,0.00021917,2]
[372484904,1752660658806,-6799.05,0.00021917,2]
[372484906,1752660658816,-460.0,0.00021917,2]
[372484907,1752660658825,-460.0,0.00021917,2]
[372484910,1752660658835,-460.0,0.00021917,2]
[372484911,1752660658844,-61246.48,0.00021917,2]
[372484913,1752660658854,-7499.87,0.00021917,2]
[372484915,1752660658863,-1054.01,0.00021917,2]
[372484917,1752660658873,-3330.35,0.00021917,2]
[372484919,1752660658882,-460.0,0.00021917,2]
[372484921,1752660658892,-384.12531597,0.00021917,2]
[372484923,1752660658902,-4681.32,0.00021917,2]
[372484925,1752660658911,-4526.85,0.00021917,2]
[372484927,1752660658920,-460.0,0.00021917,2]
[372484930,1752660658930,-460.0,0.00021917,2]
[372484931,1752660658939,-460.0,0.00021917,2]
[372484933,1752660658949,-460.0,0.00021917,2]
[372484935,1752660658959,-460.0,0.00021917,2]
[372484938,1752660658969,-700.9,0.00021917,2]
[372484939,1752660658979,-460.0,0.00021917,2]
[372484941,1752660658989,-1737.16,0.00021917,2]
[372484943,1752660658999,-1597.82,0.00021917,2]
[372484945,1752660659008,-644.14,0.00021917,2]
[372484947,1752660659017,-4266.39,0.00021917,2]
[372484949,1752660659027,-485.5935928,0.00021917,2]
[372484951,1752660659036,-152.266028,0.00021917,2]
[372484953,1752660659045,-2346.9,0.00021917,2]
[372484955,1752660659055,-460.0,0.00021917,2]
[372484957,1752660659064,-4954.72,0.00021917,2]
[372484959,1752660659074,-5642.55,0.00021917,2]
[372484961,1752660659083,-460.0,0.00021917,2]
[372484963,1752660659094,-11428.73,0.00021917,2]
[372484966,1752660659103,-460.0,0.00021917,2]
[372484968,1752660659115,-460.0,0.00021917,2]
[372484970,1752660659125,-460.0,0.00021917,2]
[372484972,1752660659136,-7125.18,0.00021917,2]
[372484973,1752660659145,-816.16,0.00021917,2]
[372484975,1752660659154,-461.07437066,0.00021917,2]
[372484977,1752660659164,-2821.09,0.00021917,2]
[372484980,1752660659174,-171.76906243,0.00021917,2]
[372484981,1752660659184,-500.0,0.00021917,2]
[372484983,1752660659195,-597.52,0.00021917,2]
[372484985,1752660659204,-500.0,0.00021917,2]
[372484987,1752660659214,-18504.59,0.00021917,2]
[372484989,1752660659223,-500.0,0.00021917,2]
[372484991,1752660659232,-3548.71,0.00021917,2]
[372484993,1752660659241,-500.0,0.00021917,2]
[372484995,1752660659250,-461.71328183,0.00021917,2]
[372484997,1752660659259,-500.0,0.00021917,2]
[372484999,1752660659269,-500.0,0.00021917,2]
[372485002,1752660659279,-500.0,0.00021917,2]
[372485004,1752660659289,-500.0,0.00021917,2]
[372485006,1752660659298,-1166.75,0.00021917,2]
[372485007,1752660659308,-2602.2,0.00021917,2]
[372485009,1752660659317,-500.0,0.00021917,2]
[372485011,1752660659327,-460.0,0.00021917,2]
[372485013,1752660659337,-1257.33,0.00021917,2]
[372485015,1752660659346,-460.0,0.00021917,2]
[372485016,1752660659356,-500.0,0.00021917,2]
[372485017,1752660659366,-460.0,0.00021917,2]
[372485018,1752660659375,-500.0,0.00021917,2]
[372485019,1752660659385,-500.0,0.00021917,2]
[372485020,1752660659395,-460.0,0.00021917,2]
[372485021,1752660659404,-460.0,0.00021917,2]
[372485022,1752660659415,-460.0,0.00021917,2]
[372485023,1752660659426,-1256.64,0.00021917,2]
[372485024,1752660659435,-543.88,0.00021917,2]
[372485025,1752660659445,-13303.16,0.00021917,2]
[372485026,1752660659454,-17203.45,0.00021917,2]
[372485027,1752660659465,-686.97,0.00021917,2]
[372485028,1752660659475,-460.0,0.00021917,2]
[372485029,1752660659486,-460.0,0.00021917,2]
[372485030,1752660659496,-4725.36,0.00021917,2]
[372485031,1752660659506,-1279.07,0.00021917,2]
[372485032,1752660659516,-5220.72,0.00021917,2]
[372485033,1752660659526,-2283.56,0.00021917,2]
[372485034,1752660659535,-461.17828677,0.00021917,2]
[372485035,1752660659545,-460.0,0.00021917,2]
[372485036,1752660659554,-2754.61,0.00021917,2]
[372485038,1752660659564,-3404.66,0.00021917,2]
[372485039,1752660659574,-4499.09,0.00021917,2]
[372485040,1752660659583,-1410.02,0.00021917,2]
[372485041,1752660659592,-460.0,0.00021917,2]
[372485042,1752660659601,-8385.29,0.00021917,2]
[372485043,1752660659611,-460.0,0.00021917,2]
[372485044,1752660659620,-506.17,0.00021917,2]
[372485045,1752660659629,-460.0,0.00021917,2]
[372485046,1752660659639,-460.0,0.00021917,2]
[372485047,1752660659648,-460.0,0.00021917,2]
[372485048,1752660659657,-460.0,0.00021917,2]
[372485049,1752660659666,-500.99480526,0.00021917,2]
[372485050,1752660659676,-460.0,0.00021917,2]
[372485051,1752660659685,-1335.72,0.00021917,2]
[372485052,1752660659695,-17700.65,0.00021917,2]
[372485053,1752660659705,-460.0,0.00021917,2]
[372485054,1752660659715,-460.0,0.00021917,2]
[372485055,1752660659725,-5164.81,0.00021917,2]
[372485056,1752660659736,-614.63,0.00021917,2]
[372485057,1752660659745,-5352.6,0.00021917,2]
[372485058,1752660659755,-460.0,0.00021917,2]
[372485059,1752660659766,-4167.0,0.00021917,2]
[372485061,1752660659775,-2916.59,0.00021917,2]
[372485063,1752660659786,-13933.69,0.00021917,2]
[372485065,1752660659796,-460.0,0.00021917,2]
[372485067,1752660659806,-460.0,0.00021917,2]
[372485069,1752660659815,-1008.24,0.00021917,2]
[372485071,1752660659827,-2333.07,0.00021917,2]
[372485073,1752660659837,-2863.84,0.00021917,2]
[372485075,1752660659847,-460.0,0.00021917,2]
[372485077,1752660659857,-460.0,0.00021917,2]
[372485079,1752660659867,-2111.62,0.00021917,2]
[372485081,1752660659876,-7153.59,0.00021917,2]
[372485083,1752660659886,-1939.12,0.00021917,2]
[372485085,1752660659896,-460.0,0.00021917,2]
[372485087,1752660659906,-1544.32,0.00021917,2]
[372485089,1752660659916,-460.0,0.00021917,2]
[372485091,1752660659926,-161.25523575,0.00021917,2]
[372485093,1752660659935,-2101.95,0.00021917,2]
[372485095,1752660659945,-460.0,0.00021917,2]
[372485097,1752660659954,-460.0,0.00021917,2]
[372485099,1752660659964,-460.0,0.00021917,2]
[372485101,1752660659973,-460.0,0.00021917,2]
[372485103,1752660659983,-746.4,0.00021917,2]
[372485105,1752660659992,-460.0,0.00021917,2]
[372485107,1752660660002,-506.74815511,0.00021917,2]
[372485109,1752660660012,-479.77,0.00021917,2]
[372485111,1752660660021,-460.0,0.00021917,2]
[372485113,1752660660031,-20030.54,0.00021917,2]
[372485115,1752660660170,-6331.37,0.00021917,2]
[372485116,1752660660181,-460.0,0.00021917,2]
[372485117,1752660660191,-461.82797936,0.00021917,2]
[372485118,1752660660201,-500.0,0.00021917,2]
[372485119,1752660660211,-460.0,0.00021917,2]
[372485120,1752660660220,-500.0,0.00021917,2]
[372485121,1752660660230,-500.0,0.00021917,2]
[372485122,1752660660240,-500.0,0.00021917,2]
[372485123,1752660660250,-2926.69,0.00021917,2]
[372485124,1752660660261,-500.0,0.00021917,2]
[372485125,1752660660270,-500.0,0.00021917,2]
[372485126,1752660660280,-3837.43,0.00021917,2]
[372485127,1752660660290,-500.0,0.00021917,2]
[372485128,1752660660300,-460.0,0.00021917,2]
[372485129,1752660660310,-3010.17,0.00021917,2]
[372485130,1752660660319,-500.0,0.00021917,2]
[372485131,1752660660329,-502.84470366,0.00021917,2]
[372485132,1752660660339,-1615.32,0.00021917,2]
[372485133,1752660660349,-2937.58,0.00021917,2]
[372485134,1752660660359,-4915.37,0.00021917,2]
[372485136,1752660660368,-460.0,0.00021917,2]
[372485137,1752660660378,-4324.05,0.00021917,2]
[372485139,1752660660387,-460.0,0.00021917,2]
[372485141,1752660660397,-26803.44,0.00021917,2]
[372485143,1752660660407,-731.55,0.00021917,2]
[372485145,1752660660420,-460.0,0.00021917,2]
[372485147,1752660660430,-460.0,0.00021917,2]
[372485149,1752660660440,-460.0,0.00021917,2]
[372485151,1752660660450,-5929.75,0.00021917,2]
[372485153,1752660660460,-1302.16,0.00021917,2]
[372485155,1752660660470,-2598.15,0.00021917,2]
[372485157,1752660660479,-460.0,0.00021917,2]
[372485159,1752660660490,-500.0,0.00021917,2]
[372485161,1752660660500,-460.44132861,0.00021917,2]
[372485163,1752660660510,-500.0,0.00021917,2]
[372485166,1752660660521,-500.0,0.00021917,2]
[372485167,1752660660531,-579.85,0.00021917,2]
[372485170,1752660660542,-434.33362683,0.00021917,2]
[372485171,1752660660551,-3599.53,0.00021917,2]
[372485174,1752660660561,-1658.04,0.00021917,2]
[372485176,1752660660571,-11682.15,0.00021917,2]
[372485178,1752660660581,-460.0,0.00021917,2]
[372485180,1752660660591,-19051.3,0.00021917,2]
[372485182,1752660660601,-7328.16,0.00021917,2]
[372485184,1752660660611,-460.0,0.00021917,2]
[372485186,1752660660621,-460.0,0.00021917,2]
[372485188,1752660660630,-460.0,0.00021917,2]
[372485190,1752660660640,-3765.05,0.00021917,2]
[372485192,1752660660650,-460.0,0.00021917,2]
[372485194,1752660660660,-2662.58,0.00021917,2]
[372485196,1752660660670,-460.20085256,0.00021917,2]
[372485198,1752660660679,-1886.01,0.00021917,2]
[372485200,1752660660689,-2452.87,0.00021917,2]
[372485201,1752660660700,-1407.21,0.00021917,2]
[372485204,1752660660710,-6371.61,0.00021917,2]
[372485206,1752660660720,-460.0,0.00021917,2]
[372485208,1752660660731,-460.0,0.00021917,2]
[372485210,1752660660740,-460.0,0.00021917,2]
[372485212,1752660660750,-460.0,0.00021917,2]
[372485214,1752660660760,-314.033331,0.00021917,2]
[372485216,1752660660769,-836.18,0.00021917,2]
[372485217,1752660660779,-10017.72,0.00021917,2]
[372485218,1752660660789,-314.033331,0.00021917,2]
[372485219,1752660660798,-2153.38,0.00021917,2]
[372485220,1752660660808,-314.033331,0.00021917,2]
[372485221,1752660660818,-7849.97,0.00021917,2]
[372485222,1752660660828,-2252.06,0.00021917,2]
[372485223,1752660660838,-1000.0,0.00021918,3]
[372485224,1752660660848,-1000.0,0.00021918,3]
[372485225,1752660660858,-1000.0,0.00021918,3]
[372485226,1752660660867,-1000.0,0.00021918,3]
[372485227,1752660660878,-1000.0,0.00021918,3]
[372485228,1752660660888,-1000.0,0.00021918,3]
[372485229,1752660660899,-1000.0,0.00021918,3]
[372485230,1752660660909,-1000.0,0.00021918,3]
[372485231,1752660660920,-1000.0,0.00021918,3]
[372485232,1752660660929,-1000.0,0.00021918,3]
[372485233,1752660660940,-1000.0,0.00021918,3]
[372485234,1752660660952,-1000.0,0.00021918,3]
[372485235,1752660660964,-1000.0,0.00021918,3]
[372485236,1752660660977,-1000.0,0.00021918,3]
[372485237,1752660660987,-1000.0,0.00021918,3]
[372485238,1752660660998,-1000.0,0.00021918,3]
[372485239,1752660661008,-1000.0,0.00021918,3]
[372485240,1752660661017,-1000.0,0.00021918,3]
[372485241,1752660661027,-1000.0,0.00021918,3]
[372485242,1752660661036,-1000.0,0.00021918,3]
[372485243,1752660661046,-1000.0,0.00021918,3]
[372485244,1752660661055,-1000.0,0.00021918,3]
[372485245,1752660661065,-1000.0,0.00021918,3]
[372485246,1752660661075,-1000.0,0.00021918,3]
[372485247,1752660661084,-1000.0,0.00021918,3]
[372485248,1752660661094,-1000.0,0.00021918,3]
[372485249,1752660661103,-1000.0,0.00021918,3]
[372485250,1752660661113,-1000.0,0.00021918,3]
[372485251,1752660661122,-1000.0,0.00021918,3]
[372485252,1752660661131,-1000.0,0.00021918,3]
[372485253,1752660661141,-1000.0,0.00021918,3]
[372485254,1752660661151,-1000.0,0.00021918,3]
[372485255,1752660661161,-1000.0,0.00021918,3]
[372485256,1752660661170,-1000.0,0.00021918,3]
[372485257,1752660661180,-1000.0,0.00021918,3]
[372485258,1752660661190,-1000.0,0.00021918,3]
[372485259,1752660661200,-1000.0,0.00021918,3]
[372485260,1752660661210,-1000.0,0.00021918,3]
[372485261,1752660661219,-1000.0,0.00021918,3]
[372485262,1752660661230,-1000.0,0.00021918,3]
[372485263,1752660661240,-1000.0,0.00021918,3]
[372485264,1752660661249,-1000.0,0.00021918,3]
[372485265,1752660661259,-1000.0,0.00021918,3]
[372485266,1752660661270,-1000.0,0.00021918,3]
[372485267,1752660661279,-1000.0,0.00021918,3]
[372485268,1752660661289,-1000.0,0.00021918,3]
[372485269,1752660661299,-1000.0,0.00021918,3]
[372485270,1752660661309,-1000.0,0.00021918,3]
[372485271,1752660661319,-1000.0,0.00021918,3]
[372485272,1752660661328,-1000.0,0.00021918,3]
[372485273,1752660661338,-1000.0,0.00021918,3]
[372485274,1752660661348,-1000.0,0.00021918,3]
[372485275,1752660661358,-1000.0,0.00021918,3]
[372485276,1752660661369,-1000.0,0.00021918,3]
[372485277,1752660661379,-1000.0,0.00021918,3]
[372485278,1752660661390,-1000.0,0.00021918,3]
[372485279,1752660661401,-1000.0,0.00021918,3]
[372485280,1752660661410,-1000.0,0.00021918,3]
[372485281,1752660661430,-736.0,0.00021918,3]
[372485282,1752660661440,-151.0,0.00021918,2]
[372485283,1752660661450,-151.0,0.00021918,2]
[372485284,1752660661459,-5000.0,0.00021918,2]
[372485285,1752660661469,-838.7287696,0.00021918,3]
[372485286,1752660661479,-150.0,0.00021918,2]
[372485287,1752660661490,-476.61752775,0.00021918,3]
[372485288,1752660661500,-201.95522269,0.00021918,2]
[372485289,1752660661509,-150.0,0.0002192,2]
[372485290,1752660661519,-150.0,0.0002192,2]
[372485291,1752660661528,-150.0,0.00021921,2]
[372485292,1752660661538,-150.0,0.00021926,2]
[372485293,1752660661548,-610.58226505,0.00021927,2]
[372485294,1752660661559,-150.0,0.0002193,2]
[372485295,1752660661569,-150.0,0.00021931,2]
[372485296,1752660661579,-150.0,0.00021935,2]
[372485297,1752660661589,-150.0,0.00021937,2]
[372485298,1752660661599,-150.0,0.00021944,2]
[372485299,1752660661608,-150.0,0.00021944,2]
[372485300,1752660661619,-300.0,0.00021946,2]
[372485301,1752660661631,-150.0,0.0002195,2]
[372485302,1752660661640,-150.0,0.00021952,2]
[372485303,1752660661650,-150.0,0.00021952,2]
[372485304,1752660661659,-150.0,0.00021953,2]
[372485305,1752660661669,-423.64242957,0.00021954,4]
[372485306,1752660661679,-423.64242957,0.00021954,4]
[372485307,1752660661689,-423.64242957,0.00021954,4]
[372485308,1752660661698,-423.64242957,0.00021954,4]
[372485309,1752660661708,-423.64242957,0.00021954,4]
[372485310,1752660661718,-423.64242957,0.00021954,4]
[372485311,1752660661728,-423.64242957,0.00021954,4]
[372485312,1752660661738,-423.64242957,0.00021954,4]
[372485313,1752660661748,-423.64242957,0.00021954,4]
[372485314,1752660661758,-423.64242957,0.00021954,4]
[372485315,1752660661768,-423.64242957,0.00021954,4]
[372485316,1752660661778,-423.64242957,0.00021954,4]
[372485317,1752660661788,-423.64242957,0.00021954,4]
[372485318,1752660661798,-423.64242957,0.00021954,4]
[372485319,1752660661808,-423.64242957,0.00021954,4]
[372485320,1752660661818,-423.64242957,0.00021954,4]
[372485321,1752660661828,-423.64242957,0.00021954,4]
[372485322,1752660661838,-432.00615274,0.00021954,4]
[372485323,1752660661849,-432.00615274,0.00021954,4]
[372485324,1752660661860,-432.00615274,0.00021954,4]
[372485325,1752660661871,-432.00615274,0.00021954,4]
[372485326,1752660661880,-432.00615274,0.00021954,4]
[372485327,1752660661889,-432.00615274,0.00021954,4]
[372485328,1752660661899,-432.00615274,0.00021954,4]
[372485329,1752660661909,-432.00615274,0.00021954,4]
[372485330,1752660661918,-432.00615274,0.00021954,4]
[372485331,1752660661928,-432.00615274,0.00021954,4]
[372485332,1752660661938,-432.00615274,0.00021954,4]
[372485333,1752660661947,-432.00615274,0.00021954,4]
[372485334,1752660661957,-432.00615274,0.00021954,4]
[372485335,1752660661967,-432.00615274,0.00021954,4]
[372485336,1752660661978,-432.00615274,0.00021954,4]
[372485337,1752660661987,-432.00615274,0.00021954,4]
[372485338,1752660661997,-432.00615274,0.00021954,4]
[372485339,1752660662008,-462.84112438,0.00021954,4]
[372485340,1752660662018,-462.84112438,0.00021954,4]
[372485341,1752660662028,-462.84112438,0.00021954,4]
[372485342,1752660662037,-462.84112438,0.00021954,4]
[372485343,1752660662049,-462.84112438,0.00021954,4]
[372485344,1752660662058,-462.84112438,0.00021954,4]
[372485345,1752660662068,-462.84112438,0.00021954,4]
[372485346,1752660662078,-462.84112438,0.00021954,4]
[372485347,1752660662088,-462.84112438,0.00021954,4]
[372485348,1752660662097,-462.84112438,0.00021954,4]
[372485349,1752660662107,-462.84112438,0.00021954,4]
[372485350,1752660662117,-462.84112438,0.00021954,4]
[372485351,1752660662127,-462.84112438,0.00021954,4]
[372485352,1752660662137,-462.84112438,0.00021954,4]
[372485353,1752660662146,-462.84112438,0.00021954,4]
[372485354,1752660662155,-462.84112438,0.00021954,4]
[372485355,1752660662165,-462.84112438,0.00021954,4]
[372485356,1752660662175,-150.0,0.00021954,2]
[372485357,1752660662184,-629.25579145,0.00021954,2]
[372485358,1752660662194,-840.51180273,0.00021954,2]
[372485359,1752660662203,-1168.39817235,0.00021954,2]
[372485360,1752660662213,-3972.00771368,0.00021954,2]
[372485361,1752660662222,-166.75489778,0.00021954,4]
[372485362,1752660662231,-168.0,0.00021964,2]
[372485363,1752660662241,-1675.84725157,0.00021969,2]
[372485364,1752660662251,-500.0,0.00021973,2]
[372485365,1752660662261,-502.39398706,0.00021973,2]
[372485366,1752660662270,-504.08184407,0.00021973,2]
[372485367,1752660662280,-500.0,0.00021973,2]
[372485368,1752660662289,-500.0,0.00021973,2]
[372485369,1752660662298,-500.0,0.00021973,2]
[372485370,1752660662308,-500.0,0.00021973,2]
[372485371,1752660662318,-500.0,0.00021973,2]
[372485372,1752660662328,-500.0,0.00021973,2]
[372485373,1752660662678,-500.0,0.00021973,2]
[372485374,1752660662696,-626.08881258,0.00021973,2]
[372485375,1752660662706,-500.0,0.00021973,2]
[372485376,1752660662716,-159.65964935,0.00021973,2]
[372485377,1752660662726,-645.52834518,0.00021973,2]
[372485378,1752660662735,-504.53778829,0.00021973,2]
[372485379,1752660662746,-500.0,0.00021973,2]
[372485380,1752660662755,-500.0,0.00021973,2]
[372485381,1752660662765,-500.0,0.00021973,2]
[372485382,1752660662774,-500.0,0.00021973,2]
[372485383,1752660662784,-503.10552444,0.00021973,2]
[372485384,1752660662793,-500.0,0.00021973,2]
[372485385,1752660662803,-500.0,0.00021973,2]
[372485386,1752660662812,-501.40327212,0.00021973,2]
[372485387,1752660662821,-500.0,0.00021973,2]
[372485388,1752660662831,-500.0,0.00021973,2]
[372485389,1752660662840,-150.0,0.00021975,2]
[372485390,1752660662850,-150.0,0.00021976,2]
[372485391,1752660662859,-1000.0,0.00021976,2]
[372485392,1752660662869,-150.0,0.00021978,2]
[372485393,1752660662878,-150.0,0.00021978,2]
[372485394,1752660662888,-150.0,0.00021979,2]
[372485395,1752660662898,-150.0,0.00021985,2]
[372485396,1752660662907,-164.47001437,0.00021986,10]
[372485397,1752660662917,-321.6562496,0.00021986,10]
[372485398,1752660662927,-150.0,0.00021986,2]
[372485399,1752660662936,-150.0,0.00021987,2]
[372485400,1752660662946,-199.92758038,0.0002199,2]
[372485401,1752660662956,-643.78350687,0.00021992,2]
[372485402,1752660662965,-150.0,0.00021996,2]
[372485403,1752660662975,-176.166,0.00021998,2]
[372485404,1752660662985,-2108.399,0.00021998,2]
[372485405,1752660662995,-500.0,0.00021999,2]
[372485406,1752660663004,-500.0,0.00021999,2]
[372485407,1752660663014,-500.0,0.00021999,2]
[372485408,1752660663024,-150.0,0.00021999,2]
[372485409,1752660663034,-1004.8624,0.00021999,2]
[372485410,1752660663043,-31277.0,0.00022,2]
[372485411,1752660663053,-3000.0,0.00022,2]
[372485412,1752660663063,-3000.0,0.00022,2]
[372485413,1752660663072,-3000.0,0.00022,2]
[372485414,1752660663082,-2508.25,0.00022,2]
[372485415,1752660663092,-2018.524215,0.00022,2]
[372485416,1752660663102,-151.0,0.00022,7]
[372485417,1752660663111,-151.0,0.00022,7]
[372485418,1752660663121,-151.0,0.00022,7]
[372485419,1752660663131,-151.0,0.00022,7]
[372485420,1752660663141,-151.0,0.00022,7]
[372485421,1752660663150,-151.0,0.00022,7]
[372485422,1752660663161,-151.0,0.00022,7]
[372485423,1752660663171,-151.0,0.00022,7]
[372485424,1752660663180,-514485.77,0.00022,7]
[372485425,1752660663190,-151.0,0.00022,7]
[372485426,1752660663200,-151.0,0.00022,7]
[372485427,1752660663210,-13945.26,0.00022,7]
[372485428,1752660663220,-226.184216,0.00022,7]
[372485429,1752660663230,-226.184216,0.00022,7]
[372485430,1752660663239,-151.0,0.00022,7]
[372485431,1752660663249,-164.135107,0.00022,7]
[372485432,1752660663258,-151.0,0.00022,7]
[372485433,1752660663268,-164.135107,0.00022,7]
[372485434,1752660663278,-239.0,0.00022,2]
[372485435,1752660663288,-151.0,0.00022,7]
[372485436,1752660663297,-313.201703,0.00022,7]
[372485437,1752660663307,-189.494592,0.00022,7]
[372485438,1752660663317,-313.201703,0.00022,7]
[372485439,1752660663327,-189.494592,0.00022,7]
[372485440,1752660663336,-156.478533,0.00022,7]
[372485441,1752660663347,-156.478533,0.00022,7]
[372485442,1752660663358,-383.0,0.00022,2]
[372485443,1752660663368,-849.0,0.00022,2]
[372485444,1752660663378,-151.0,0.00022,7]
[372485445,1752660663387,-151.0,0.00022,7]
[372485446,1752660663399,-151.0,0.00022,7]
[372485447,1752660663409,-151.0,0.00022,7]
[372485448,1752660663423,-151.0,0.00022,2]
[372485449,1752660663433,-838.7287696,0.00022,7]
[372485450,1752660663443,-151.0,0.00022,7]
[372485451,1752660663453,-151.0,0.00022,7]
[372485452,1752660663463,-262.715112,0.00022,7]
[372485453,1752660663473,-215.992609,0.00022,7]
[372485454,1752660663484,-151.0,0.00022,7]
[372485455,1752660663495,-262.715112,0.00022,7]
[372485456,1752660663505,-151.0,0.00022,7]
[372485457,1752660663515,-151.0,0.00022,7]
[372485458,1752660663525,-378.0,0.00022,2]
[372485459,1752660663534,-476.61752775,0.00022,7]
[372485460,1752660663544,-314.033331,0.00022,7]
[372485461,1752660663554,-150.0,0.00022002,2]
[372485462,1752660663564,-150.0,0.00022004,2]
[372485463,1752660663574,-150.0,0.00022005,2]
[372485464,1752660663585,-423.64242957,0.00022006,4]
[372485465,1752660663596,-432.00615274,0.00022006,4]
[372485466,1752660663606,-462.84112438,0.00022006,4]
[372485467,1752660663616,-150.0,0.00022006,2]
[372485468,1752660663626,-150.0,0.00022008,2]
[372485469,1752660663636,-955.37,0.00022008,2]
[372485470,1752660663646,-3349.0,0.00022008,2]
[372485471,1752660663656,-150.0,0.00022009,2]
[372485472,1752660663666,-150.0,0.0002201,2]
[372485473,1752660663675,-150.0,0.00022012,2]
[372485474,1752660663686,-200.0,0.00022014,2]
[372485475,1752660663695,-150.0,0.0002202,2]
[372485476,1752660663705,-150.0,0.00022023,2]
[372485477,1752660663716,-150.0,0.00022032,2]
[372485478,1752660663725,-150.0,0.00022036,2]
[372485479,1752660663735,-610.58226505,0.00022036,2]
[372485480,1752660663745,-21778.52057101,0.00022039,2]
[372485481,1752660663755,-150.0,0.0002204,2]
[372485482,1752660663765,-150.0,0.0002204,2]
[372485483,1752660663775,-150.0,0.00022043,2]
[372485484,1752660663785,-199.92758038,0.00022044,2]
[372485485,1752660663795,-666.0,0.00022053,2]
[372485486,1752660663805,-500.0,0.00022053,2]
[372485487,1752660663815,-500.0,0.00022053,2]
[372485488,1752660663826,-500.0,0.00022053,2]
[372485489,1752660663837,-500.0,0.00022053,2]
[372485490,1752660663848,-500.0,0.00022053,2]
[372485491,1752660663860,-500.0,0.00022053,2]
[372485492,1752660663871,-500.0,0.00022053,2]
[372485493,1752660663881,-500.0,0.00022053,2]
[372485494,1752660663892,-500.0,0.00022053,2]
[372485495,1752660663902,-429.41,0.00022053,2]
[372485496,1752660663913,-586.5,0.00022053,2]
[372485497,1752660663923,-586.5,0.00022053,2]
[372485498,1752660663933,-586.5,0.00022053,2]
[372485499,1752660663943,-586.5,0.00022053,2]
[372485500,1752660663953,-586.5,0.00022053,2]
[372485501,1752660663963,-586.5,0.00022053,2]
[372485502,1752660663974,-586.5,0.00022053,2]
[372485503,1752660663985,-586.5,0.00022053,2]
[372485504,1752660663994,-586.5,0.00022053,2]
[372485505,1752660664005,-586.5,0.00022053,2]
[372485506,1752660664015,-586.5,0.00022053,2]
[372485507,1752660664025,-586.72180759,0.00022053,2]
[372485508,1752660664035,-1698.3,0.00022053,2]
[372485509,1752660664045,-1698.3,0.00022053,2]
[372485510,1752660664054,-1698.3,0.00022053,2]
[372485511,1752660664064,-1698.3,0.00022053,2]
[372485512,1752660664074,-1698.3,0.00022053,2]
[372485513,1752660664084,-1698.3,0.00022053,2]
[372485514,1752660664094,-666.0,0.00022053,2]
[372485515,1752660664104,-500.0,0.00022053,2]
[372485516,1752660664113,-500.0,0.00022053,2]
[372485517,1752660664123,-511.05,0.00022053,2]
[372485518,1752660664133,-511.05,0.00022053,2]